bitfinex/quotes_BTCUSD_20220731
["timestamp","ask_amount","ask_price","bid_price","bid_amount"]
[1659282671295,0.00133873,23759.0,23758.0,2.13346094]
[1659282671971,0.00133873,23759.0,23758.0,2.21346094]
[1659282673727,0.00133873,23759.0,23758.0,2.18189094]
[1659282673945,0.00133873,23759.0,23758.0,2.10189094]
[1659282674164,0.00133873,23759.0,23758.0,2.16346094]
[1659282674396,0.00133873,23759.0,23758.0,1.8417396]
[1659282674607,0.00115282,23759.0,23758.0,1.8311796]
[1659282674873,0.00115282,23759.0,23758.0,1.8811796]
[1659282675124,0.00115282,23759.0,23758.0,1.86585901]
[1659282675352,0.00115282,23759.0,23758.0,1.87135901]
[1659282675577,0.00115282,23759.0,23758.0,1.79135901]
[1659282676255,0.00115282,23759.0,23758.0,1.86935901]
[1659282676707,0.00115282,23759.0,23758.0,1.78778901]
[1659282676940,0.00115282,23759.0,23758.0,1.88243771]
[1659282677157,0.00115282,23759.0,23758.0,1.80086771]
[1659282677437,0.00115282,23759.0,23758.0,1.72286771]
[1659282677910,0.00115282,23759.0,23758.0,1.77286771]
[1659282678107,0.00115282,23759.0,23758.0,1.88243771]
[1659282678574,0.00115282,23759.0,23758.0,1.80086771]
[1659282678803,0.00115282,23759.0,23758.0,1.83243771]
[1659282679028,0.00115282,23759.0,23758.0,1.88243771]
[1659282679255,0.00115282,23759.0,23758.0,1.85086771]
[1659282679501,0.00115282,23759.0,23758.0,1.77286771]
[1659282680183,0.00115282,23759.0,23758.0,1.85286771]
[1659282680632,0.00115282,23759.0,23758.0,1.5626883]
[1659282680859,0.00115282,23759.0,23758.0,1.5126883]
[1659282681086,0.00115282,23759.0,23758.0,1.2071883]
[1659282681503,0.00115282,23759.0,23758.0,1.4271883]
[1659282681720,0.00115282,23759.0,23758.0,1.4771883]
[1659282681960,0.00115282,23759.0,23758.0,1.5193183]
[1659282682189,0.00115282,23759.0,23758.0,2.72279663]
[1659282682397,0.00115282,23759.0,23758.0,1.5606883]
[1659282683377,0.00115282,23759.0,23758.0,1.4826883]
[1659282684066,0.00115282,23759.0,23758.0,1.5606883]
[1659282685439,0.00115282,23759.0,23758.0,1.4826883]
[1659282686141,0.00115282,23759.0,23758.0,1.5606883]
[1659282686412,0.00115282,23759.0,23758.0,1.5106883]
[1659282687563,1.282e-05,23759.0,23758.0,1.6343883]
[1659282687824,1.282e-05,23759.0,23758.0,1.64703178]
[1659282688054,1.282e-05,23759.0,23758.0,1.64903178]
[1659282688280,0.00083873,23760.0,23759.0,0.13979134]
[1659282688281,8.73e-06,23760.0,23759.0,0.13979134]
[1659282688546,8.73e-06,23760.0,23759.0,1.47257738]
[1659282688740,8.73e-06,23760.0,23759.0,1.48522086]
[1659282688989,8.73e-06,23760.0,23759.0,1.49829956]
[1659282689226,0.57229957,23762.0,23761.0,0.10511818]
[1659282689227,1.83e-05,23762.0,23761.0,0.10511818]
[1659282689447,0.0022,23771.0,23762.0,0.18930582]
[1659282689714,0.0022,23771.0,23770.0,0.1288]
[1659282689929,0.0022,23771.0,23770.0,1.63492949]
[1659282690168,0.0022,23771.0,23770.0,1.98492949]
[1659282690499,0.0022,23771.0,23770.0,1.98742865]
[1659282691372,0.0032,23775.0,23774.0,0.06298818]
[1659282691595,0.0032,23775.0,23774.0,1.23789367]
[1659282691846,0.0001,23775.0,23774.0,1.53789367]
[1659282692078,0.0022,23781.0,23778.0,0.06298818]
[1659282692293,0.0022,23781.0,23778.0,1.25302051]
[1659282692534,0.0001,23779.0,23778.0,0.97470549]
[1659282692791,0.0004,23784.0,23783.0,0.06298818]
[1659282693015,0.0004,23784.0,23783.0,0.53625733]
[1659282693458,0.0004,23784.0,23783.0,0.57093049]
[1659282694138,0.0004,23784.0,23783.0,0.61793049]
[1659282694380,0.49692012,23786.0,23783.0,0.45425733]
[1659282694606,0.5741,23789.0,23783.0,0.45425733]
[1659282694911,0.49192012,23788.0,23784.0,0.03608865]
[1659282695097,0.49192012,23788.0,23783.0,0.45425733]
[1659282695314,0.49192012,23787.0,23783.0,0.40725733]
[1659282695536,0.49192012,23787.0,23783.0,0.40891481]
[1659282695757,0.49192012,23787.0,23784.0,0.44334598]
[1659282696207,0.49192012,23787.0,23784.0,0.40725733]
[1659282696883,0.8000714,23787.0,23786.0,0.0130787]
[1659282697105,2.14274885,23787.0,23786.0,0.0130787]
[1659282697328,0.95,23786.0,23783.0,0.00165748]
[1659282697560,0.59192012,23784.0,23783.0,0.00165748]
[1659282697779,1.44267745,23784.0,23778.0,0.129]
[1659282698000,0.65,23779.0,23778.0,0.129]
[1659282698451,0.05,23779.0,23774.0,0.2999]
[1659282698712,0.05,23779.0,23774.0,0.70715733]
[1659282699597,0.05,23779.0,23778.0,0.00151072]
[1659282700038,1.23542012,23782.0,23778.0,0.00151072]
[1659282700262,0.30007139,23782.0,23778.0,0.00151072]
[1659282700491,7.139e-05,23782.0,23778.0,0.00151072]
[1659282701170,1.0507,23783.0,23778.0,0.00151072]
[1659282701434,0.00076165,23782.0,23778.0,0.00151072]
[1659282701880,0.85075733,23781.0,23778.0,0.00151072]
[1659282702141,0.05,23779.0,23778.0,0.01851072]
[1659282702369,0.40725733,23781.0,23778.0,0.01851072]
[1659282702812,0.85151898,23782.0,23778.0,0.05318388]
[1659282703046,0.00076165,23782.0,23778.0,0.05318388]
[1659282703546,0.00076165,23782.0,23778.0,0.00151072]
[1659282704215,0.00076165,23782.0,23778.0,0.01851072]
[1659282705357,0.00076165,23782.0,23778.0,0.00151072]
[1659282705928,0.00076165,23782.0,23778.0,0.0093076]
[1659282706168,0.0008298,23782.0,23778.0,0.0433076]
[1659282706425,6.815e-05,23782.0,23780.0,0.1288]
[1659282706647,6.815e-05,23782.0,23779.0,0.44193049]
[1659282706880,0.00073301,23784.0,23779.0,0.44193049]
[1659282707330,0.00073301,23784.0,23779.0,0.40725733]
[1659282708006,0.00073301,23784.0,23775.0,0.00807988]
[1659282708007,1.06100533,23783.0,23775.0,0.00807988]
[1659282708245,1.06100533,23783.0,23779.0,0.026]
[1659282708246,0.7435,23782.0,23779.0,0.026]
[1659282708504,0.4435,23782.0,23779.0,0.026]
[1659282708958,0.61750533,23783.0,23779.0,0.026]
[1659282708959,0.85075733,23781.0,23779.0,0.026]
[1659282709217,0.4435,23782.0,23779.0,0.026]
[1659282709448,0.00073301,23784.0,23780.0,0.00807988]
[1659282709676,0.00073301,23784.0,23779.0,0.03467316]
[1659282710122,0.90740143,23787.0,23780.0,0.02307988]
[1659282710342,0.85075733,23786.0,23780.0,0.02307988]
[1659282711083,6.416e-05,23785.0,23780.0,0.02307988]
[1659282711537,6.416e-05,23785.0,23780.0,0.00807988]
[1659282711757,1.06096733,23786.0,23780.0,0.00807988]
[1659282712191,1.06096733,23786.0,23780.0,0.02607988]
[1659282712409,7.176e-05,23784.0,23780.0,0.02607988]
[1659282713329,1.06096733,23786.0,23780.0,0.02607988]
[1659282713637,1.06096733,23786.0,23780.0,0.00807988]
[1659282713838,7.176e-05,23783.0,23780.0,0.00807988]
[1659282714067,7.176e-05,23783.0,23781.0,0.03769332]
[1659282714321,7.176e-05,23783.0,23780.0,0.01907988]
[1659282714793,0.210235,23782.0,23780.0,0.011]
[1659282715479,0.653735,23782.0,23778.0,0.00807988]
[1659282716167,0.653735,23782.0,23778.0,0.05607988]
[1659282716609,0.65379532,23782.0,23778.0,0.05607988]
[1659282717093,1.37429532,23782.0,23778.0,0.048]
[1659282717605,1.37429532,23782.0,23776.0,0.00807988]
[1659282717606,0.85075733,23781.0,23776.0,0.00807988]
[1659282717830,0.21026,23780.0,23776.0,0.00807988]
[1659282718056,0.63079,23780.0,23776.0,0.00807988]
[1659282718465,0.62579,23780.0,23776.0,0.00807988]
[1659282719759,0.20526,23780.0,23776.0,0.00807988]
[1659282719988,0.20526,23780.0,23778.0,0.00807988]
[1659282720438,0.21097725,23782.0,23778.0,0.00807988]
[1659282720656,0.61823458,23782.0,23778.0,0.00807988]
[1659282721147,1.06173458,23782.0,23778.0,0.00800102]
[1659282721932,0.61823458,23782.0,23778.0,0.00800102]
[1659282722168,0.61823458,23782.0,23779.0,0.04586105]
[1659282722370,0.61823458,23782.0,23779.0,0.00800102]
[1659282723023,1.06173458,23782.0,23779.0,0.00800102]
[1659282723502,0.61823458,23782.0,23779.0,0.00800102]
[1659282723734,0.61823458,23782.0,23778.0,0.00800102]
[1659282724013,0.40799558,23782.0,23778.0,0.00800102]
[1659282724252,0.210249,23781.0,23778.0,0.00800102]
[1659282725825,0.40806401,23782.0,23778.0,0.00800102]
[1659282726063,0.40799558,23782.0,23778.0,0.00800102]
[1659282726510,0.40806401,23782.0,23778.0,0.00800102]
[1659282726975,0.00080668,23782.0,23780.0,0.00800102]
[1659282727450,0.00073825,23782.0,23780.0,0.00800102]
[1659282727882,0.00073825,23782.0,23779.0,0.00800102]
[1659282729112,0.21096325,23782.0,23779.0,0.00800102]
[1659282729923,0.21096325,23782.0,23780.0,0.03801011]
[1659282730164,0.21096325,23782.0,23778.0,0.00800102]
[1659282730414,0.210249,23780.0,23778.0,0.00800102]
[1659282730870,0.210249,23780.0,23778.0,0.01133825]
[1659282731089,0.210249,23780.0,23778.0,0.04601141]
[1659282731560,0.210249,23780.0,23778.0,0.00800102]
[1659282732004,0.210249,23780.0,23778.0,0.04601141]
[1659282732225,0.21096225,23782.0,23778.0,0.10301141]
[1659282732497,0.00075492,23781.0,23778.0,0.10301141]
[1659282732983,0.21098392,23781.0,23778.0,0.10301141]
[1659282733429,0.21098392,23781.0,23778.0,0.04601141]
[1659282733668,0.21098392,23781.0,23778.0,0.00800102]
[1659282733890,0.21098392,23781.0,23778.0,0.04555265]
[1659282734554,0.21098392,23781.0,23778.0,0.00800102]
[1659282736152,0.210237,23780.0,23778.0,0.01700102]
[1659282736946,0.210237,23780.0,23778.0,0.05455265]
[1659282737411,0.210237,23780.0,23778.0,0.00800102]
[1659282738004,0.210237,23780.0,23778.0,0.04900102]
[1659282738266,0.210237,23780.0,23778.0,0.041]
[1659282738836,2.20075733,23779.0,23778.0,0.041]
[1659282739073,0.95,23775.0,23774.0,0.2999]
[1659282739217,2.58823833,23775.0,23774.0,0.2999]
[1659282739446,0.05,23771.0,23767.0,0.00800102]
[1659282739660,0.8435,23768.0,23767.0,0.00800102]
[1659282739903,0.8435,23768.0,23765.0,0.00800102]
[1659282739904,1.25075733,23768.0,23765.0,0.00800102]
[1659282740121,1.24575733,23768.0,23765.0,0.00800102]
[1659282740268,0.8385,23768.0,23765.0,0.00800102]
[1659282740485,0.5818,23769.0,23766.0,0.00101606]
[1659282740724,0.6236,23771.0,23767.0,0.40725733]
[1659282740986,0.6236,23771.0,23770.0,0.00800102]
[1659282740987,0.044,23771.0,23770.0,0.00800102]
[1659282741097,0.044,23771.0,23770.0,0.0759892]
[1659282741314,0.044,23771.0,23770.0,0.11066236]
[1659282741547,0.044,23771.0,23770.0,0.00800102]
[1659282741978,0.5818,23774.0,23770.0,0.08500102]
[1659282742192,0.00077159,23771.0,23770.0,0.08500102]
[1659282743254,0.00077159,23771.0,23770.0,0.84823335]
[1659282743948,0.00077159,23771.0,23770.0,0.49425835]
[1659282745044,0.00077159,23771.0,23770.0,0.08700102]
[1659282745506,0.30077159,23771.0,23770.0,0.00800102]
[1659282745732,0.30077159,23771.0,23767.0,0.00800102]
[1659282745969,0.210346,23770.0,23768.0,0.40725733]
[1659282746207,0.210346,23770.0,23768.0,0.44476853]
[1659282746420,0.04177159,23771.0,23769.0,0.00300102]
[1659282747356,0.00077159,23771.0,23769.0,0.00300102]
[1659282748299,0.03077159,23771.0,23769.0,0.08000102]
[1659282748987,0.03077159,23771.0,23770.0,0.303975]
[1659282749205,0.03077159,23771.0,23769.0,0.077]
[1659282749425,0.00077159,23771.0,23770.0,0.00300102]
[1659282750157,0.69842717,23771.0,23770.0,0.07100102]
[1659282751541,0.68942717,23771.0,23770.0,0.00300102]
[1659282752291,0.69842717,23771.0,23770.0,0.07100102]
[1659282753627,0.68942717,23771.0,23770.0,0.00300102]
[1659282754076,0.76342717,23771.0,23770.0,0.32997602]
[1659282754361,0.76342717,23771.0,23770.0,0.02600102]
[1659282754583,0.76342717,23771.0,23770.0,0.73723335]
[1659282755988,0.68942717,23771.0,23770.0,0.41025835]
[1659282756223,0.68942717,23771.0,23770.0,0.79223335]
[1659282757421,0.68942717,23771.0,23770.0,0.71423335]
[1659282757990,0.68942717,23771.0,23770.0,0.79223335]
[1659282758430,0.68942717,23771.0,23770.0,0.48825835]
[1659282758630,0.68942717,23771.0,23770.0,0.79223335]
[1659282759079,0.68942717,23771.0,23770.0,0.08100102]
[1659282759396,0.68942717,23771.0,23770.0,0.00300102]
[1659282760126,0.68942717,23771.0,23770.0,0.48925835]
[1659282761310,0.68942717,23771.0,23770.0,0.53189183]
[1659282761532,0.68942717,23771.0,23770.0,0.41025835]
[1659282761757,0.68942717,23771.0,23770.0,0.40725733]
[1659282761986,0.68942717,23771.0,23770.0,0.41025835]
[1659282762256,0.68942717,23771.0,23770.0,0.08200102]
[1659282763163,0.68942717,23771.0,23770.0,0.079]
[1659282763385,0.68942717,23771.0,23767.0,0.40725733]
[1659282763631,0.210323,23770.0,23768.0,0.00300102]
[1659282763855,0.05,23769.0,23768.0,0.00300102]
[1659282764077,0.920701,23769.0,23766.0,0.00300102]
[1659282764303,0.920701,23769.0,23766.0,0.41025835]
[1659282764765,0.420701,23769.0,23766.0,0.41025835]
[1659282764988,1.16807517,23771.0,23768.0,0.00300102]
[1659282765422,0.89973717,23771.0,23768.0,0.00300102]
[1659282766131,0.97073717,23771.0,23768.0,0.00300102]
[1659282766615,0.76042717,23771.0,23770.0,0.00300102]
[1659282766840,0.63429151,23771.0,23770.0,0.00300102]
[1659282767053,0.63429151,23771.0,23770.0,0.04750102]
[1659282767603,0.56329151,23771.0,23770.0,0.04750102]
[1659282767826,0.56329151,23771.0,23770.0,0.05033691]
[1659282768069,0.56329151,23771.0,23770.0,0.5712674]
[1659282769225,0.56407794,23771.0,23770.0,0.5267674]
[1659282769439,0.56407794,23771.0,23770.0,0.4477674]
[1659282770220,0.56407794,23771.0,23770.0,0.5267674]
[1659282771588,0.56407794,23771.0,23770.0,0.4477674]
[1659282772218,0.56407794,23771.0,23770.0,0.5267674]
[1659282773382,0.56407794,23771.0,23770.0,0.41025835]
[1659282774055,0.56407794,23771.0,23770.0,0.48925835]
[1659282775149,0.56407794,23771.0,23770.0,0.48625733]
[1659282775672,0.56407794,23771.0,23770.0,0.079]
[1659282775899,0.56407794,23771.0,23766.0,0.00300102]
[1659282776116,0.630985,23770.0,23766.0,0.41025835]
[1659282778137,0.709985,23770.0,23766.0,0.41025835]
[1659282779473,0.210328,23770.0,23768.0,0.00300102]
[1659282780127,0.264328,23770.0,23768.0,0.00300102]
[1659282781497,0.210328,23770.0,23768.0,0.00300102]
[1659282781948,0.277328,23770.0,23768.0,0.00300102]
[1659282783268,0.210328,23770.0,23768.0,0.00300102]
[1659282783936,0.210328,23770.0,23767.0,0.00300102]
[1659282784159,0.277328,23770.0,23767.0,0.00300102]
[1659282785275,0.210328,23770.0,23767.0,0.00300102]
[1659282785961,0.61761962,23769.0,23765.0,0.00300102]
[1659282786172,1.45075733,23768.0,23763.0,0.00306113]
[1659282786384,0.631113,23767.0,23763.0,0.00306113]
[1659282787115,0.631113,23767.0,23763.0,6.011e-05]
[1659282787116,0.05,23764.0,23763.0,6.011e-05]
[1659282787544,0.35,23764.0,23763.0,6.011e-05]
[1659282787973,0.05,23764.0,23763.0,0.07906011]
[1659282788432,0.931197,23765.0,23763.0,0.07906011]
[1659282788636,0.35,23764.0,23763.0,0.07906011]
[1659282788853,0.05,23764.0,23763.0,0.07906011]
[1659282789319,0.05,23764.0,23763.0,6.011e-05]
[1659282789772,0.05,23764.0,23762.0,0.00300102]
[1659282789773,5.253e-05,23763.0,23762.0,0.00300102]
[1659282789992,0.21043653,23763.0,23762.0,0.00300102]
[1659282791031,0.21043653,23763.0,23761.0,0.00300102]
[1659282791706,5.253e-05,23763.0,23761.0,0.00300102]
[1659282792141,0.01005253,23763.0,23761.0,0.07100102]
[1659282792603,0.01005253,23763.0,23761.0,0.10896045]
[1659282792867,0.01005253,23763.0,23762.0,1.50870321]
[1659282793110,0.01005253,23763.0,23762.0,2.18335221]
[1659282793337,0.01005253,23763.0,23762.0,2.75485221]
[1659282793604,5.253e-05,23763.0,23762.0,2.18335221]
[1659282793817,5.253e-05,23763.0,23762.0,1.14989451]
[1659282794031,5.253e-05,23763.0,23762.0,1.19833451]
[1659282794760,5.253e-05,23763.0,23762.0,0.98802051]
[1659282794984,5.253e-05,23763.0,23762.0,0.79123233]
[1659282795211,5.253e-05,23763.0,23762.0,0.08]
[1659282795444,5.253e-05,23763.0,23761.0,0.00300102]
[1659282795704,5.253e-05,23763.0,23761.0,0.44493151]
[1659282795883,5.253e-05,23763.0,23762.0,0.303975]
[1659282796113,5.253e-05,23763.0,23762.0,0.30697602]
[1659282796329,5.253e-05,23763.0,23761.0,0.48625733]
[1659282796829,5.253e-05,23763.0,23761.0,0.11367316]
[1659282797049,5.253e-05,23763.0,23762.0,0.00300102]
[1659282797050,0.21043653,23763.0,23762.0,0.00300102]
[1659282798180,0.21043653,23763.0,23762.0,0.06800102]
[1659282799157,0.21043653,23763.0,23762.0,0.10267418]
[1659282799394,0.21043653,23763.0,23762.0,0.03767418]
[1659282799633,5.253e-05,23763.0,23762.0,0.00300102]
[1659282800084,5.253e-05,23763.0,23762.0,0.06800102]
[1659282801522,5.253e-05,23763.0,23762.0,0.00300102]
[1659282801983,5.253e-05,23763.0,23762.0,0.30697602]
[1659282802212,5.253e-05,23763.0,23762.0,0.77323335]
[1659282803473,5.253e-05,23763.0,23762.0,0.71423335]
[1659282804158,5.253e-05,23763.0,23762.0,0.79423335]
[1659282805586,0.04455253,23763.0,23762.0,0.08300102]
[1659282806049,0.04455253,23763.0,23762.0,0.00300102]
[1659282806318,0.04455253,23763.0,23762.0,0.08200102]
[1659282807009,5.253e-05,23763.0,23762.0,0.08200102]
[1659282807948,5.253e-05,23763.0,23762.0,0.00300102]
[1659282808192,5.253e-05,23763.0,23762.0,0.04700102]
[1659282809357,0.04455253,23763.0,23762.0,0.00300102]
[1659282810277,0.04455253,23763.0,23762.0,0.08200102]
[1659282811442,0.04455253,23763.0,23762.0,0.00300102]
[1659282812174,0.04455253,23763.0,23762.0,0.08200102]
[1659282813534,0.04455253,23763.0,23762.0,0.00300102]
[1659282813775,5.253e-05,23763.0,23762.0,0.00300102]
[1659282814067,5.253e-05,23763.0,23762.0,0.04000102]
[1659282815456,5.253e-05,23763.0,23762.0,0.03767418]
[1659282815695,5.253e-05,23763.0,23762.0,0.44493151]
[1659282815958,5.253e-05,23763.0,23762.0,0.74890651]
[1659282816183,5.253e-05,23763.0,23762.0,0.82790651]
[1659282816852,5.253e-05,23763.0,23762.0,0.79323335]
[1659282817084,5.253e-05,23763.0,23762.0,0.82790651]
[1659282817540,5.253e-05,23763.0,23762.0,0.74991208]
[1659282818241,5.253e-05,23763.0,23762.0,0.82891208]
[1659282818702,0.21041253,23763.0,23762.0,0.82891208]
[1659282818925,0.21041253,23763.0,23762.0,0.49026392]
[1659282819135,0.21041253,23763.0,23762.0,0.48925835]
[1659282819570,0.21041253,23763.0,23762.0,0.41025835]
[1659282820091,0.21041253,23763.0,23762.0,0.48925835]
[1659282820788,0.21041253,23763.0,23762.0,0.079]
[1659282821252,0.21041253,23763.0,23762.0,0.07889032]
[1659282821464,0.21041253,23763.0,23760.0,0.0011]
[1659282822008,0.51041253,23763.0,23760.0,0.0011]
[1659282822229,0.05,23761.0,23760.0,0.0121]
[1659282822692,0.35,23761.0,23760.0,0.0121]
[1659282822907,1.05725733,23761.0,23760.0,0.0121]
[1659282823136,1.67445733,23761.0,23760.0,0.0121]
[1659282823359,1.67445733,23761.0,23760.0,0.0011]
[1659282823360,2.11795733,23761.0,23760.0,0.0011]
[1659282824308,2.16295733,23761.0,23760.0,0.0011]
[1659282825017,0.6122,23761.0,23760.0,0.0011]
[1659282825508,0.97445733,23761.0,23760.0,0.0011]
[1659282825961,1.41795733,23761.0,23760.0,0.0011]
[1659282826181,1.45395733,23761.0,23760.0,0.0011]
[1659282826408,1.80395733,23761.0,23760.0,0.00316145]
[1659282827568,1.76795733,23761.0,23760.0,0.00316145]
[1659282828135,1.80395733,23761.0,23760.0,0.00316145]
[1659282828370,0.05,23760.0,23758.0,0.001]
[1659282828544,1.8435,23759.0,23758.0,0.001]
[1659282828716,2.60075733,23759.0,23758.0,0.001]
[1659282830070,2.34375733,23759.0,23758.0,0.001]
[1659282831416,2.30075733,23759.0,23758.0,0.001]
[1659282831645,0.90075733,23759.0,23758.0,0.001]
[1659282831882,0.653973,23760.0,23758.0,0.001]
[1659282832089,0.04,23759.0,23758.0,0.001]
[1659282832319,0.04079623,23759.0,23758.0,0.00400102]
[1659282833412,0.00079623,23759.0,23758.0,0.00400102]
[1659282834079,0.03159246,23759.0,23758.0,0.08000102]
[1659282834318,0.03159246,23759.0,23758.0,0.11467418]
[1659282834754,0.03159246,23759.0,23758.0,0.52193151]
[1659282834976,0.03159246,23759.0,23758.0,0.82590651]
[1659282835236,0.03159246,23759.0,23758.0,0.48725835]
[1659282835672,0.03159246,23759.0,23758.0,0.52193151]
[1659282835892,0.00159246,23759.0,23758.0,0.40825733]
[1659282836109,0.00159246,23759.0,23758.0,0.08400102]
[1659282836786,0.00159246,23759.0,23758.0,0.081]
[1659282836787,1.15234979,23759.0,23758.0,0.081]
[1659282837018,1.50234979,23759.0,23758.0,0.081]
[1659282837432,1.50234979,23759.0,23758.0,0.001]
[1659282838085,1.54734979,23759.0,23758.0,0.001]
[1659282838506,1.24734979,23759.0,23758.0,0.001]
[1659282839376,1.20234979,23759.0,23758.0,0.001]
[1659282840924,1.25234979,23759.0,23758.0,0.001]
[1659282841148,1.20234979,23759.0,23758.0,0.001]
[1659282842414,1.24734979,23759.0,23758.0,0.001]
[1659282843307,1.29734979,23759.0,23758.0,0.001]
[1659282843761,1.34234979,23759.0,23758.0,0.001]
[1659282844224,1.25234979,23759.0,23758.0,0.001]
[1659282844751,1.20034979,23759.0,23758.0,0.001]
[1659282845215,1.15234979,23759.0,23758.0,0.001]
[1659282846537,0.89765924,23759.0,23758.0,0.001]
[1659282847260,0.89838303,23759.0,23758.0,0.001]
[1659282847692,0.85038303,23759.0,23758.0,0.001]
[1659282847927,0.85038303,23759.0,23758.0,0.00400102]
[1659282848409,0.89838303,23759.0,23758.0,0.00400102]
[1659282849781,0.85038303,23759.0,23758.0,0.00400102]
[1659282850224,0.40688303,23759.0,23758.0,0.00400102]
[1659282850444,0.02372379,23759.0,23758.0,0.07900102]
[1659282851366,0.02372379,23759.0,23758.0,0.0813647]
[1659282851812,0.00072379,23759.0,23758.0,0.0063647]
[1659282852502,0.4435,23762.0,23758.0,0.0553647]
[1659282852725,0.40725733,23761.0,23758.0,0.05236368]
[1659282852933,0.61766233,23761.0,23758.0,0.05236368]
[1659282853165,0.210405,23761.0,23760.0,0.00300102]
[1659282853440,0.40725733,23761.0,23760.0,0.00300102]
[1659282854131,0.631209,23762.0,23760.0,0.00300102]
[1659282854353,0.210396,23762.0,23760.0,0.00300102]
[1659282854565,0.071,23761.0,23760.0,0.01400102]
[1659282855703,1.39750986,23763.0,23760.0,0.00300102]
[1659282855923,0.210393,23762.0,23758.0,0.106189]
[1659282856192,1.39750986,23763.0,23761.0,0.00300102]
[1659282856416,0.210394,23762.0,23761.0,0.00300102]
[1659282857751,0.510394,23762.0,23761.0,0.00300102]
[1659282858418,0.289394,23762.0,23761.0,0.00300102]
[1659282859815,0.510394,23762.0,23761.0,0.00300102]
[1659282860045,0.560394,23762.0,23761.0,0.00300102]
[1659282860304,0.860394,23762.0,23760.0,0.00300102]
[1659282860552,0.860394,23762.0,23758.0,0.00400102]
[1659282860553,1.62167133,23761.0,23758.0,0.00400102]
[1659282860762,0.7,23759.0,23758.0,0.00400102]
[1659282861017,2.48211733,23759.0,23758.0,0.00400102]
[1659282861236,2.53211733,23759.0,23758.0,0.00400102]
[1659282862359,2.57211733,23759.0,23758.0,0.001]
[1659282863349,2.52211733,23759.0,23758.0,0.001]
[1659282863567,2.48211733,23759.0,23758.0,0.001]
[1659282864039,2.53211733,23759.0,23758.0,0.001]
[1659282864450,2.57211733,23759.0,23758.0,0.001]
[1659282864653,2.52211733,23759.0,23758.0,0.001]
[1659282865264,2.52289749,23759.0,23758.0,0.001]
[1659282866099,2.57289749,23759.0,23758.0,0.001]
[1659282866279,2.53289749,23759.0,23758.0,0.001]
[1659282866534,2.57289749,23759.0,23758.0,0.001]
[1659282867483,2.52289749,23759.0,23758.0,0.001]
[1659282867898,1.48289749,23759.0,23758.0,0.001]
[1659282868348,1.82289749,23759.0,23758.0,0.001]
[1659282868578,1.52289749,23759.0,23758.0,0.001]
[1659282869479,1.52289749,23759.0,23758.0,0.00400102]
[1659282869715,1.48289749,23759.0,23758.0,0.00400102]
[1659282870412,1.52289749,23759.0,23758.0,0.00400102]
[1659282870822,1.07939749,23759.0,23758.0,0.00400102]
[1659282871733,1.03939749,23759.0,23758.0,0.00400102]
[1659282872384,0.67214016,23759.0,23758.0,0.00400102]
[1659282872852,0.25123316,23759.0,23758.0,0.00400102]
[1659282873501,0.04078016,23759.0,23758.0,0.00400102]
[1659282873738,0.00078016,23759.0,23758.0,0.00400102]
[1659282873983,0.21119516,23759.0,23758.0,0.00400102]
[1659282874448,0.21119516,23759.0,23758.0,0.07100102]
[1659282874449,0.22319516,23759.0,23758.0,0.07100102]
[1659282875734,0.21119516,23759.0,23758.0,0.00400102]
[1659282876411,0.21119516,23759.0,23758.0,0.07100102]
[1659282876412,0.22319516,23759.0,23758.0,0.07100102]
[1659282878272,0.21119516,23759.0,23758.0,0.00388482]
[1659282878505,0.22319516,23759.0,23758.0,0.07088482]
[1659282878728,0.22319516,23759.0,23758.0,0.07077246]
[1659282879883,0.21119516,23759.0,23758.0,0.00377246]
[1659282880580,0.22319516,23759.0,23758.0,0.07077246]
[1659282881703,0.21119516,23759.0,23758.0,0.00377246]
[1659282882379,0.58019516,23759.0,23758.0,0.00377246]
[1659282883130,0.63019516,23759.0,23758.0,0.00377246]
[1659282883642,0.58019516,23759.0,23758.0,0.00377246]
[1659282883861,0.51119516,23759.0,23758.0,0.00377246]
[1659282884110,0.56119516,23759.0,23758.0,0.00377246]
[1659282884563,0.28019516,23759.0,23758.0,0.03844562]
[1659282884776,0.28019516,23759.0,23758.0,0.00377246]
[1659282885925,0.21119516,23759.0,23758.0,0.00377246]
[1659282886366,0.28019516,23759.0,23758.0,0.00377246]
[1659282887526,0.70106916,23759.0,23758.0,0.00377246]
[1659282888207,0.63206916,23759.0,23758.0,0.00377246]
[1659282888441,0.70106916,23759.0,23758.0,0.00377246]
[1659282889781,0.63206916,23759.0,23758.0,0.00377246]
[1659282890467,0.70106916,23759.0,23758.0,0.00377246]
[1659282890945,1.10832649,23759.0,23758.0,0.00377246]
[1659282891160,1.40832649,23759.0,23758.0,0.00377246]
[1659282891384,1.10832649,23759.0,23758.0,0.03844562]
[1659282891605,1.10832649,23759.0,23758.0,0.00377246]
[1659282891826,1.03932649,23759.0,23758.0,0.00377246]
[1659282892498,0.70106916,23759.0,23758.0,0.00377246]
[1659282894175,0.63206916,23759.0,23758.0,0.00377246]
[1659282894402,0.70106916,23759.0,23758.0,0.00377246]
[1659282895732,1.03932649,23759.0,23758.0,0.00377246]
[1659282895969,1.38932649,23759.0,23758.0,0.00377246]
[1659282896413,1.45832649,23759.0,23758.0,0.00377246]
[1659282896641,1.10832649,23759.0,23758.0,0.00377246]
[1659282896877,0.47703749,23759.0,23758.0,0.00377246]
[1659282897091,1.10828849,23759.0,23758.0,0.00377246]
[1659282897570,0.68744349,23759.0,23758.0,0.00377246]
[1659282897574,1.10828949,23759.0,23758.0,0.00377246]
[1659282897795,1.03928949,23759.0,23758.0,0.00377246]
[1659282898459,1.10928949,23759.0,23758.0,0.00377246]
[1659282898962,1.40928949,23759.0,23758.0,0.00377246]
[1659282899203,1.10928949,23759.0,23758.0,0.00377246]
[1659282900314,1.03928949,23759.0,23758.0,0.00377246]
[1659282900534,1.10728949,23759.0,23758.0,0.00377246]
[1659282901669,1.03928949,23759.0,23758.0,0.00377246]
[1659282902105,1.03930249,23759.0,23758.0,0.00377246]
[1659282902328,1.03930249,23759.0,23758.0,0.00366236]
[1659282902571,1.10730249,23759.0,23758.0,0.00366236]
[1659282902803,0.06878016,23759.0,23758.0,0.00366236]
[1659282903695,0.06878016,23759.0,23758.0,0.30366236]
[1659282903696,0.00078016,23759.0,23758.0,0.30366236]
[1659282904190,0.00078016,23759.0,23758.0,0.63920736]
[1659282904194,0.00078016,23759.0,23758.0,1.04646469]
[1659282904417,0.00078016,23759.0,23758.0,1.67546469]
[1659282905300,0.210408,23765.0,23758.0,1.67546469]
[1659282905524,0.18964533,23765.0,23762.0,0.00300102]
[1659282905748,0.07239337,23765.0,23762.0,0.00300102]
[1659282905979,0.73927136,23767.0,23765.0,0.11557114]
[1659282906207,0.64437369,23766.0,23765.0,0.11557114]
[1659282906425,0.58149005,23766.0,23765.0,0.11557114]
[1659282906658,0.55476514,23766.0,23765.0,0.11557114]
[1659282906875,0.49189295,23766.0,23765.0,0.11557114]